[Event "Czech Open GM 2020"]
[Site "Pardubice"]
[Date "2020.09.26"]
[Round "6.14"]
[White "Pogan, Nikolas"]
[Black "Arkell, Keith C"]
[Result "1/2-1/2"]
[ECO "E15"]
[WhiteElo "2212"]
[BlackElo "2429"]
[Annotator "ChessBase"]
[PlyCount "97"]
[EventDate "2020.09.21"]
[EventCountry "CZE"]
[SourceTitle "playchess.com"]
[Source "ChessBase"]
[SourceQuality "1"]
[TimeControl "40/5400+30:1800+30"]

1. d4 {[%emt 0:00:00]} Nf6 {[%emt 0:01:26]} 2. c4 {[%emt 0:01:29]} e6 {[%emt 0:00:07]} 3. Nf3 {[%emt 0:00:03]} b6 {[%emt 0:00:04]} 4. g3 {[%emt 0:00:04]} Ba6 {[%emt 0:00:03]} 5. Nbd2 {[%emt 0:00:12]} d5 {[%emt 0:02:07]} 6. Bg2 {[%emt 0:09:09]} Be7 {[%emt 0:02:00]} 7. O-O {[%emt 0:06:41]} O-O {[%emt 0:00:23]} 8. b3 {[%emt 0:04:31]} c6 {[%emt 0:07:08]} 9. Bb2 {[%emt 0:07:25]} Nbd7 {[%emt 0:00:00]} 10. Re1 {[%emt 0:17:34]} b5 {[%emt 0:03:17]} 11. Ne5 {[%emt 0:15:25]} Nxe5 {[%emt 0:01:32]} 12. dxe5 {[%emt 0:00:03]} Nd7 {[%emt 0:00:11]} 13. cxd5 {[%emt 0:01:35]} cxd5 {[%emt 0:00:10]} 14. e4 {[%emt 0:04:09]} Nc5 {[%emt 0:03:36]} 15. Bd4 {[%emt 0:00:04]} Bb7 {[%emt 0:02:27]} 16. Qe2 {[%emt 0:02:52]} Qa5 {[%emt 0:06:53]} 17. exd5 {[%emt 0:02:51]} Bxd5 {[%emt 0:02:01]} 18. Bxd5 {[%emt 0:00:36]} exd5 {[%emt 0:00:05]} 19. Bxc5 {[%emt 0:06:07]} Bxc5 {[%emt 0:00:06]} 20. Qd3 {[%emt 0:00:01]} Rac8 {[%emt 0:01:46]} 21. Re2 {[%emt 0:00:19]} Be7 {[%emt 0:01:53]} 22. Nf3 {[%emt 0:00:48]} b4 {[%emt 0:04:15]} 23. Rd1 {[%emt 0:02:09]} Rc3 {[%emt 0:04:31]} 24. Qf5 {[%emt 0:01:49]} Qa6 {[%emt 0:00:18]} 25. Red2 {[%emt 0:03:57]} g6 {[%emt 0:03:17]} 26. Qf4 {[%emt 0:01:49]} f6 {[%emt 0:05:33]} 27. Nd4 {[%emt 0:00:25]} Rc5 {[%emt 0:17:46]} 28. exf6 {[%emt 0:08:06]} Bxf6 {[%emt 0:01:32]} 29. Qg4 {[%emt 0:00:21]} Re8 {[%emt 0:02:24]} 30. Nf3 {[%emt 0:01:10]} Qb7 {[%emt 0:07:06]} 31. Nd4 {[%emt 0:00:55]} Re4 {[%emt 0:02:22]} 32. Qf3 {[%emt 0:00:09]} Qe7 {[%emt 0:00:57]} 33. Rd3 {[%emt 0:02:13]} Qe5 {[%emt 0:07:00]} 34. h4 {[%emt 0:00:39]} Rc3 {[%emt 0:00:35]} 35. Nb5 {[%emt 0:00:22]} Rc5 {[%emt 0:06:49]} 36. Nd4 {[%emt 0:00:02]} Kg7 {[%emt 0:01:17]} 37. Kf1 {[%emt 0:01:31]} a6 {[%emt 0:01:39]} 38. Ne2 {[%emt 0:00:32]} Kg8 {[%emt 0:03:02]} 39. R3d2 {[%emt 0:00:43]} h5 {[%emt 0:01:00]} 40. Rd3 {[%emt 0:00:13]} Kh7 {[%emt 0:00:33]} 41. R3d2 {[%emt 0:02:45]} Kg8 {[%emt 0:11:41]} 42. Rd3 {[%emt 0:03:17]} Kh7 {[%emt 0:04:09]} 43. R3d2 {[%emt 0:00:07]} a5 {[%emt 0:00:14]} 44. Rd3 {[%emt 0:00:52]} Bg7 {[%emt 0:00:08]} 45. R3d2 {[%emt 0:02:30]} Bf6 {[%emt 0:05:27]} 46. Rd3 {[%emt 0:00:04]} Kg7 {[%emt 0:00:04]} 47. R3d2 {[%emt 0:00:13]} Be7 {[%emt 0:04:10]} 48. Rd3 {[%emt 0:02:15]} Bf6 {[%emt 0:05:29]} 49. R3d2 {[%emt 0:00:03]} 1/2-1/2

[Event "Czech Open GM 2020"]
[Site "Pardubice"]
[Date "2020.09.26"]
[Round "6.15"]
[White "Siekanski, Janusz"]
[Black "Vokac, Marek"]
[Result "0-1"]
[ECO "A41"]
[WhiteElo "2184"]
[BlackElo "2365"]
[Annotator "ChessBase"]
[PlyCount "55"]
[EventDate "2020.09.21"]
[EventCountry "CZE"]
[SourceTitle "playchess.com"]
[Source "ChessBase"]
[SourceQuality "1"]
[TimeControl "40/5400+30:1800+30"]

1. d4 {[%emt 0:00:00]} d6 {[%emt 0:04:24]} 2. c4 {[%emt 0:00:26]} e5 {[%emt 0:00:03]} 3. d5 {[%emt 0:00:18]} f5 {[%emt 0:00:30]} 4. e4 {[%emt 0:00:34]} Nf6 {[%emt 0:00:03]} 5. exf5 {[%emt 0:02:10]} Bxf5 {[%emt 0:00:06]} 6. Nc3 {[%emt 0:00:40]} Nbd7 {[%emt 0:00:29]} 7. Nge2 {[%emt 0:02:22]} Bg6 {[%emt 0:07:41]} 8. Ng3 {[%emt 0:01:44]} c6 {[%emt 0:05:32]} 9. Bd3 {[%emt 0:18:54]} Bf7 {[%emt 0:00:39]} 10. O-O {[%emt 0:05:24]} cxd5 {[%emt 0:08:35]} 11. cxd5 {[%emt 0:02:54]} g6 {[%emt 0:20:50]} 12. f4 {[%emt 0:09:40]} Be7 {[%emt 0:04:16]} 13. f5 {[%emt 0:03:02]} a6 {[%emt 0:04:47]} 14. fxg6 {[%emt 0:06:34]} hxg6 {[%emt 0:00:12]} 15. Nge4 {[%emt 0:00:32]} Nxe4 {[%emt 0:02:42]} 16. Nxe4 {[%emt 0:02:28]} Qb6+ {[%emt 0:01:59]} 17. Kh1 {[%emt 0:00:31]} Bxd5 {[%emt 0:01:14]} 18. Nc3 {[%emt 0:06:30]} Bf7 {[%emt 0:10:29]} 19. Nd5 {[%emt 0:02:48]} Qd4 {[%emt 0:09:29]} 20. Nc7+ {[%emt 0:10:29]} Kd8 {[%emt 0:00:01]} 21. Nxa8 {[%emt 0:08:15]} Bd5 {[%emt 0:08:43]} 22. Rf3 {[%emt 0:12:19]} Bxf3 {[%emt 0:04:29]} 23. Qxf3 {[%emt 0:01:22]} Nc5 {[%emt 0:00:08]} 24. Bxg6 {[%emt 0:01:24]} e4 {[%emt 0:00:59]} 25. Be3 {[%emt 0:00:00]} Qxb2 {[%emt 0:04:47]} 26. Qf1 {[%emt 0:00:03]} Qe5 {[%emt 0:00:01]} 27. Bf4 {[%emt 0:00:01]} Qf6 28. Bc1 {[%emt 0:00:06]} 0-1

[Event "Czech Open GM 2020"]
[Site "Pardubice"]
[Date "2020.09.26"]
[Round "6.16"]
[White "Storme, Isak"]
[Black "Ochedzan, Tymon"]
[Result "1/2-1/2"]
[ECO "A38"]
[WhiteElo "2353"]
[BlackElo "2214"]
[Annotator "ChessBase"]
[PlyCount "189"]
[EventDate "2020.09.21"]
[EventCountry "CZE"]
[SourceTitle "playchess.com"]
[Source "ChessBase"]
[SourceQuality "1"]
[TimeControl "40/5400+30:1800+30"]

1. c4 {[%emt 0:08:50]} Nf6 {[%emt 0:00:00]} 2. Nc3 {[%emt 0:00:10]} g6 {[%emt 0:00:07]} 3. g3 {[%emt 0:00:41]} Bg7 {[%emt 0:02:06]} 4. Bg2 {[%emt 0:00:12]} O-O {[%emt 0:02:03]} 5. Nf3 {[%emt 0:00:19]} c5 {[%emt 0:04:32]} 6. O-O {[%emt 0:00:24]} d5 {[%emt 0:09:14]} 7. cxd5 {[%emt 0:01:50]} Nxd5 {[%emt 0:00:34]} 8. Nxd5 {[%emt 0:01:46]} Qxd5 {[%emt 0:00:08]} 9. d3 {[%emt 0:00:15]} Nc6 {[%emt 0:10:17]} 10. Be3 {[%emt 0:01:05]} Qd6 {[%emt 0:18:02]} 11. Rc1 {[%emt 0:02:44]} Nd4 {[%emt 0:03:53]} 12. Nxd4 {[%emt 0:00:08]} cxd4 {[%emt 0:02:59]} 13. Bf4 {[%emt 0:00:17]} Qb6 {[%emt 0:10:16]} 14. Qb3 {[%emt 0:02:05]} Qxb3 {[%emt 0:04:16]} 15. axb3 {[%emt 0:00:16]} e5 {[%emt 0:01:34]} 16. Bd2 {[%emt 0:00:08]} Bg4 {[%emt 0:01:45]} 17. Rfe1 {[%emt 0:03:14]} Rab8 {[%emt 0:04:39]} 18. h3 {[%emt 0:05:23]} Be6 {[%emt 0:00:11]} 19. Rc7 {[%emt 0:01:44]} Rfc8 {[%emt 0:02:31]} 20. Rec1 {[%emt 0:00:30]} Rxc7 {[%emt 0:01:04]} 21. Rxc7 {[%emt 0:00:07]} Bxb3 {[%emt 0:02:19]} 22. Bxb7 {[%emt 0:01:54]} Be6 {[%emt 0:00:59]} 23. b4 {[%emt 0:04:31]} Bf8 {[%emt 0:02:30]} 24. Bf3 {[%emt 0:10:32]} Bxb4 {[%emt 0:00:42]} 25. Bxb4 {[%emt 0:00:07]} Rxb4 {[%emt 0:00:03]} 26. Rxa7 {[%emt 0:00:08]} Rb5 {[%emt 0:02:30]} 27. Kg2 {[%emt 0:03:35]} Kg7 {[%emt 0:00:54]} 28. Be4 {[%emt 0:01:16]} h6 {[%emt 0:03:27]} 29. h4 {[%emt 0:04:29]} Bg4 {[%emt 0:01:46]} 30. Bf3 {[%emt 0:00:09]} Be6 {[%emt 0:00:39]} 31. g4 {[%emt 0:00:54]} g5 {[%emt 0:01:02]} 32. Kg3 {[%emt 0:00:38]} Rc5 {[%emt 0:01:00]} 33. Rb7 {[%emt 0:04:13]} Ra5 {[%emt 0:00:35]} 34. Rb6 {[%emt 0:00:44]} Rc5 {[%emt 0:01:48]} 35. Rd6 {[%emt 0:00:36]} Kf6 {[%emt 0:02:03]} 36. h5 {[%emt 0:00:32]} Ke7 {[%emt 0:01:21]} 37. Ra6 {[%emt 0:00:35]} Kf6 {[%emt 0:01:19]} 38. Be4 {[%emt 0:00:43]} Rc2 {[%emt 0:01:11]} 39. Kf3 {[%emt 0:00:46]} Kg7 {[%emt 0:00:06]} 40. Ra5 {[%emt 0:01:07]} Kf6 {[%emt 0:00:54]} 41. Bd5 {[%emt 0:31:01]} Bxd5+ {[%emt 0:13:38]} 42. Rxd5 {[%emt 0:00:00]} Ra2 {[%emt 0:02:48]} 43. Rd6+ {[%emt 0:00:00]} Kg7 {[%emt 0:00:05]} 44. Rb6 {[%emt 0:00:00]} Rd2 {[%emt 0:01:24]} 45. Ra6 {[%emt 0:00:00]} Rb2 {[%emt 0:00:49]} 46. Ra8 {[%emt 0:00:00]} Rd2 {[%emt 0:01:02]} 47. Rd8 {[%emt 0:00:00]} Kf6 {[%emt 0:00:50]} 48. Rd7 {[%emt 0:00:00]} Ke6 {[%emt 0:00:44]} 49. Rb7 {[%emt 0:00:00]} Kf6 {[%emt 0:00:06]} 50. Rb6+ {[%emt 0:00:00]} Kg7 {[%emt 0:00:07]} 51. Rd6 {[%emt 0:00:00]} Ra2 {[%emt 0:01:13]} 52. Rb6 {[%emt 0:00:00]} Rd2 {[%emt 0:00:38]} 53. Rc6 {[%emt 0:00:00]} Rb2 {[%emt 0:01:31]} 54. Rc5 {[%emt 0:00:00]} Kf6 {[%emt 0:00:26]} 55. Ra5 {[%emt 0:00:00]} Rd2 {[%emt 0:00:32]} 56. Ra4 {[%emt 0:00:00]} Kg7 {[%emt 0:01:28]} 57. Ra3 {[%emt 0:00:00]} Rb2 {[%emt 0:00:43]} 58. Ra1 {[%emt 0:00:00]} Rd2 {[%emt 0:00:51]} 59. Ra6 {[%emt 0:00:00]} Rb2 {[%emt 0:00:48]} 60. e3 {[%emt 0:00:26]} Rd2 {[%emt 0:04:43]} 61. Ra3 {[%emt 0:00:34]} Kf6 {[%emt 0:01:15]} 62. Rb3 {[%emt 0:01:34]} Kg7 {[%emt 0:00:33]} 63. Kg3 {[%emt 0:00:41]} Kf6 {[%emt 0:00:53]} 64. Ra3 {[%emt 0:01:51]} Rd1 {[%emt 0:01:47]} 65. Kg2 {[%emt 0:00:44]} Kg7 {[%emt 0:00:34]} 66. exd4 {[%emt 0:05:10]} exd4 {[%emt 0:00:06]} 67. Kf3 {[%emt 0:00:08]} Rd2 {[%emt 0:00:15]} 68. Kg3 {[%emt 0:01:29]} Kf6 {[%emt 0:00:48]} 69. f4 {[%emt 0:00:47]} gxf4+ {[%emt 0:03:12]} 70. Kxf4 {[%emt 0:00:07]} Rf2+ {[%emt 0:00:24]} 71. Kg3 {[%emt 0:00:18]} Rd2 {[%emt 0:00:26]} 72. Kf3 {[%emt 0:04:16]} Kg5 {[%emt 0:00:43]} 73. Ra5+ {[%emt 0:03:51]} Kh4 {[%emt 0:00:26]} 74. Ra1 {[%emt 0:02:42]} Rxd3+ {[%emt 0:00:35]} 75. Kf4 {[%emt 0:00:10]} Rh3 {[%emt 0:01:03]} 76. Rd1 {[%emt 0:02:52]} d3 {[%emt 0:00:46]} 77. Rd2 {[%emt 0:00:18]} Rh1 {[%emt 0:00:55]} 78. Rxd3 {[%emt 0:03:05]} Rg1 {[%emt 0:00:24]} 79. Rd6 {[%emt 0:04:18]} Rxg4+ {[%emt 0:00:29]} 80. Kf3 {[%emt 0:00:13]} Kxh5 {[%emt 0:00:11]} 81. Rd7 {[%emt 0:00:41]} f5 {[%emt 0:00:50]} 82. Rf7 {[%emt 0:00:42]} Kg6 {[%emt 0:00:11]} 83. Rf8 {[%emt 0:00:08]} Ra4 {[%emt 0:00:56]} 84. Kg3 {[%emt 0:00:24]} h5 {[%emt 0:00:23]} 85. Rb8 {[%emt 0:00:23]} h4+ {[%emt 0:00:31]} 86. Kf3 {[%emt 0:02:31]} Ra7 {[%emt 0:00:42]} 87. Kf4 {[%emt 0:00:33]} Rf7 {[%emt 0:01:07]} 88. Rh8 {[%emt 0:01:55]} Rh7 {[%emt 0:00:10]} 89. Rg8+ {[%emt 0:00:08]} Kf7 {[%emt 0:00:55]} 90. Rg5 {[%emt 0:00:18]} h3 {[%emt 0:01:05]} 91. Rxf5+ {[%emt 0:00:06]} Kg8 {[%emt 0:00:26]} 92. Rg5+ {[%emt 0:00:06]} Rg7 {[%emt 0:00:32]} 93. Rxg7+ {[%emt 0:00:14]} Kxg7 {[%emt 0:00:04]} 94. Kg3 {[%emt 0:00:07]} h2 {[%emt 0:00:04]} 95. Kxh2 {[%emt 0:00:06]} 1/2-1/2

[Event "Czech Open GM 2020"]
[Site "Pardubice"]
[Date "2020.09.26"]
[Round "6.17"]
[White "Seger, Ruediger"]
[Black "Crevatin, Leo"]
[Result "1-0"]
[ECO "B15"]
[WhiteElo "2312"]
[BlackElo "2188"]
[Annotator "ChessBase"]
[PlyCount "113"]
[EventDate "2020.09.21"]
[EventCountry "CZE"]
[SourceTitle "playchess.com"]
[Source "ChessBase"]
[SourceQuality "1"]
[TimeControl "40/5400+30:1800+30"]

1. e4 c6 2. d4 {[%emt 65:57:34]} d5 {[%emt 0:01:57]} 3. Nd2 {[%emt 0:00:11]} dxe4 {[%emt 0:00:04]} 4. Nxe4 {[%emt 0:00:04]} Nf6 {[%emt 0:00:08]} 5. Nxf6+ {[%emt 0:00:25]} exf6 {[%emt 0:00:02]} 6. c3 {[%emt 0:00:07]} Bd6 {[%emt 0:00:13]} 7. Bd3 {[%emt 0:00:12]} O-O {[%emt 0:00:13]} 8. Qc2 {[%emt 0:00:13]} Re8+ {[%emt 0:00:19]} 9. Ne2 {[%emt 0:00:07]} h5 {[%emt 0:00:10]} 10. O-O {[%emt 0:01:05]} Qc7 {[%emt 0:15:57]} 11. h3 {[%emt 0:05:24]} h4 {[%emt 0:07:36]} 12. Re1 {[%emt 0:02:59]} Nd7 {[%emt 0:04:23]} 13. Bf4 {[%emt 0:03:49]} Nf8 {[%emt 0:02:45]} 14. Bxd6 {[%emt 0:01:06]} Qxd6 {[%emt 0:00:08]} 15. Rad1 {[%emt 0:06:14]} Be6 {[%emt 0:11:24]} 16. c4 {[%emt 0:06:13]} Rad8 {[%emt 0:04:54]} 17. Nc3 {[%emt 0:03:10]} Kh8 {[%emt 0:05:55]} 18. d5 {[%emt 0:02:34]} Bd7 {[%emt 0:01:19]} 19. Rxe8 {[%emt 0:00:55]} Rxe8 {[%emt 0:00:16]} 20. dxc6 {[%emt 0:01:01]} Bxc6 {[%emt 0:01:09]} 21. Be4 {[%emt 0:02:08]} Bxe4 {[%emt 0:02:34]} 22. Nxe4 {[%emt 0:00:07]} Qb4 {[%emt 0:02:02]} 23. a3 {[%emt 0:04:27]} Qa5 {[%emt 0:00:23]} 24. Nc3 {[%emt 0:13:23]} Ng6 {[%emt 0:03:07]} 25. Qd2 {[%emt 0:04:35]} Qc7 {[%emt 0:05:58]} 26. b3 {[%emt 0:01:24]} a6 {[%emt 0:01:07]} 27. Qd4 {[%emt 0:03:33]} Qa5 {[%emt 0:03:02]} 28. Qd7 {[%emt 0:04:11]} Rf8 {[%emt 0:03:29]} 29. Nd5 {[%emt 0:04:06]} b5 {[%emt 0:05:49]} 30. cxb5 {[%emt 0:02:01]} axb5 {[%emt 0:01:15]} 31. a4 {[%emt 0:01:17]} bxa4 {[%emt 0:02:02]} 32. Qxa4 {[%emt 0:01:00]} Qxa4 {[%emt 0:01:52]} 33. bxa4 {[%emt 0:00:05]} Rd8 {[%emt 0:02:39]} 34. a5 {[%emt 0:03:45]} Nf4 {[%emt 0:01:06]} 35. Ne3 {[%emt 0:00:07]} Ra8 {[%emt 0:00:34]} 36. Ra1 {[%emt 0:00:11]} Ne2+ {[%emt 0:00:50]} 37. Kf1 {[%emt 0:00:14]} Nd4 {[%emt 0:00:16]} 38. Ra4 {[%emt 0:13:37]} Nb3 {[%emt 0:01:07]} 39. Nc4 {[%emt 0:00:10]} Rc8 {[%emt 0:00:59]} 40. Ke2 {[%emt 0:01:34]} g5 {[%emt 0:00:48]} 41. Nd6 {[%emt 0:06:55]} Ra8 {[%emt 0:05:16]} 42. Nb7 {[%emt 0:00:48]} Ra6 {[%emt 0:02:54]} 43. Kd1 {[%emt 0:01:33]} Kg7 {[%emt 0:01:40]} 44. Kc2 {[%emt 0:00:33]} Nxa5 {[%emt 0:00:13]} 45. Rxa5 {[%emt 0:01:10]} Re6 {[%emt 0:01:14]} 46. Rd5 {[%emt 0:02:20]} Kg6 {[%emt 0:00:40]} 47. Kd2 {[%emt 0:00:56]} Rb6 {[%emt 0:02:25]} 48. Nd6 {[%emt 0:00:17]} Rb2+ {[%emt 0:00:15]} 49. Ke3 {[%emt 0:00:38]} Rb3+ {[%emt 0:00:52]} 50. Rd3 {[%emt 0:01:11]} Rb6 {[%emt 0:01:21]} 51. Ne4 {[%emt 0:00:55]} Rb5 {[%emt 0:02:48]} 52. Rd6 {[%emt 0:09:17]} Re5 {[%emt 0:00:42]} 53. Rxf6+ {[%emt 0:03:51]} Kg7 {[%emt 0:02:24]} 54. Kf3 {[%emt 0:00:25]} Rxe4 {[%emt 0:01:12]} 55. Rxf7+ {[%emt 0:00:06]} Kxf7 {[%emt 0:00:06]} 56. Kxe4 {[%emt 0:00:03]} Ke6 {[%emt 0:02:21]} 57. f4 {[%emt 0:00:20]} 1-0

[Event "Czech Open GM 2020"]
[Site "Pardubice"]
[Date "2020.09.26"]
[Round "6.18"]
[White "Nemec, Jachym"]
[Black "Rabatin, Jakub"]
[Result "1-0"]
[ECO "E92"]
[WhiteElo "2150"]
[BlackElo "2291"]
[Annotator "ChessBase"]
[PlyCount "97"]
[EventDate "2020.09.21"]
[EventCountry "CZE"]
[SourceTitle "playchess.com"]
[Source "ChessBase"]
[SourceQuality "1"]
[TimeControl "40/5400+30:1800+30"]

1. d4 {[%emt 0:26:33]} Nf6 {[%emt 0:00:16]} 2. c4 {[%emt 0:00:10]} c5 {[%emt 0:00:20]} 3. d5 {[%emt 0:02:10]} g6 {[%emt 0:00:30]} 4. Nc3 {[%emt 0:00:07]} Bg7 {[%emt 0:00:06]} 5. e4 {[%emt 0:00:36]} d6 {[%emt 0:00:05]} 6. Be2 {[%emt 0:00:37]} O-O {[%emt 0:00:12]} 7. Nf3 {[%emt 0:01:11]} e5 {[%emt 0:04:20]} 8. h3 {[%emt 0:02:04]} Nh5 {[%emt 0:02:58]} 9. g3 a6 {[%emt 0:17:57]} 10. Ng5 Nf6 {[%emt 0:18:40]} 11. a4 Nbd7 {[%emt 0:08:11]} 12. Bd2 Ne8 {[%emt 0:13:25]} 13. Qc1 Ndf6 {[%emt 0:13:43]} 14. Kf1 b6 {[%emt 0:08:34]} 15. Kg2 Bd7 {[%emt 0:01:06]} 16. h4 {[%emt 0:04:19]} h5 {[%emt 0:02:20]} 17. Qc2 {[%emt 0:01:01]} Nc7 {[%emt 0:01:02]} 18. Rhb1 {[%emt 0:01:31]} a5 {[%emt 0:07:06]} 19. Re1 {[%emt 0:02:18]} Na6 {[%emt 0:02:42]} 20. Rad1 {[%emt 0:09:03]} Nb4 {[%emt 0:00:31]} 21. Qb3 {[%emt 0:01:45]} Qe7 {[%emt 0:02:12]} 22. Nb5 {[%emt 0:05:03]} Nh7 {[%emt 0:04:18]} 23. g4 {[%emt 0:10:50]} hxg4 {[%emt 0:05:48]} 24. Qg3 {[%emt 0:00:18]} Nf6 {[%emt 0:11:07]} 25. f3 {[%emt 0:12:31]} Nh5 {[%emt 0:01:26]} 26. Qf2 {[%emt 0:00:27]} g3 {[%emt 0:03:26]} 27. Qg1 {[%emt 0:00:04]} f6 {[%emt 0:02:28]} 28. Ne6 {[%emt 0:00:33]} Bxe6 {[%emt 0:00:09]} 29. dxe6 {[%emt 0:00:04]} Rad8 {[%emt 0:00:13]} 30. f4 {[%emt 0:01:28]} Nxf4+ {[%emt 0:02:08]} 31. Kxg3 {[%emt 0:01:06]} Nxe2+ {[%emt 0:02:38]} 32. Rxe2 {[%emt 0:00:06]} Qxe6 {[%emt 0:00:18]} 33. Kh2 {[%emt 0:00:50]} Kf7 {[%emt 0:03:19]} 34. Bxb4 {[%emt 0:01:09]} axb4 {[%emt 0:00:05]} 35. h5 {[%emt 0:00:33]} g5 {[%emt 0:01:19]} 36. Rf2 {[%emt 0:00:46]} Rh8 {[%emt 0:02:18]} 37. Qxg5 {[%emt 0:00:15]} Kg8 {[%emt 0:00:29]} 38. Qh4 {[%emt 0:02:18]} Qf7 {[%emt 0:01:22]} 39. Rf5 {[%emt 0:00:07]} Qxc4 {[%emt 0:00:28]} 40. Rg1 {[%emt 0:00:24]} Rh6 {[%emt 0:00:27]} 41. Nc7 {[%emt 0:27:33]} d5 {[%emt 0:01:54]} 42. Qg4 {[%emt 0:03:43]} Rh7 {[%emt 0:00:28]} 43. Ne6 {[%emt 0:01:13]} dxe4 {[%emt 0:01:06]} 44. Nxd8 {[%emt 0:00:31]} Qd5 {[%emt 0:01:30]} 45. Qd1 {[%emt 0:01:42]} Qc4 {[%emt 0:00:17]} 46. Qd7 {[%emt 0:02:04]} Qe2+ {[%emt 0:00:30]} 47. Rg2 {[%emt 0:00:04]} Rxh5+ {[%emt 0:00:20]} 48. Rxh5 {[%emt 0:00:06]} Qxh5+ {[%emt 0:00:02]} 49. Kg1 {[%emt 0:00:06]} 1-0

[Event "Czech Open GM 2020"]
[Site "Pardubice"]
[Date "2020.09.26"]
[Round "6.19"]
[White "Pacl, Vaclav"]
[Black "Mica, Marek"]
[Result "1/2-1/2"]
[ECO "A10"]
[WhiteElo "2007"]
[BlackElo "2290"]
[Annotator "ChessBase"]
[PlyCount "25"]
[EventDate "2020.09.21"]
[EventCountry "CZE"]
[SourceTitle "playchess.com"]
[Source "ChessBase"]
[SourceQuality "1"]
[TimeControl "40/5400+30:1800+30"]

1. Nf3 {[%emt 0:05:46]} e6 {[%emt 0:00:22]} 2. g3 {[%emt 0:02:25]} d5 {[%emt 0:01:30]} 3. Bg2 {[%emt 0:01:40]} f5 {[%emt 0:01:09]} 4. O-O {[%emt 0:01:45]} Nf6 {[%emt 0:00:21]} 5. c4 {[%emt 0:00:17]} c6 {[%emt 0:00:27]} 6. b3 {[%emt 0:00:08]} Nbd7 {[%emt 0:01:00]} 7. Qc2 {[%emt 0:02:28]} Bd6 {[%emt 0:01:50]} 8. Ba3 {[%emt 0:04:51]} Bxa3 {[%emt 0:02:11]} 9. Nxa3 {[%emt 0:00:11]} Qe7 {[%emt 0:00:12]} 10. Nb1 {[%emt 0:00:12]} O-O {[%emt 0:01:10]} 11. Nc3 {[%emt 0:06:02]} Qd6 {[%emt 0:13:55]} 12. e3 {[%emt 0:07:00]} b6 {[%emt 0:07:36]} 13. cxd5 {[%emt 0:19:21]} 1/2-1/2

[Event "Czech Open GM 2020"]
[Site "Pardubice"]
[Date "2020.09.26"]
[Round "6.20"]
[White "Simek, Petr"]
[Black "Lorscheid, Gerhard"]
[Result "1/2-1/2"]
[ECO "D13"]
[WhiteElo "2289"]
[BlackElo "2185"]
[Annotator "ChessBase"]
[PlyCount "58"]
[EventDate "2020.09.21"]
[EventCountry "CZE"]
[SourceTitle "playchess.com"]
[Source "ChessBase"]
[SourceQuality "1"]
[TimeControl "40/5400+30:1800+30"]

1. c4 {[%emt 0:01:42]} c6 {[%emt 0:00:22]} 2. Nc3 {[%emt 0:01:53]} d5 {[%emt 0:00:35]} 3. d4 {[%emt 0:03:14]} Nf6 {[%emt 0:00:09]} 4. Nf3 {[%emt 0:00:28]} a6 {[%emt 0:00:19]} 5. cxd5 {[%emt 0:00:26]} cxd5 {[%emt 0:00:06]} 6. Bf4 {[%emt 0:00:03]} Nc6 {[%emt 0:00:25]} 7. e3 {[%emt 0:00:11]} Bg4 {[%emt 0:00:24]} 8. h3 {[%emt 0:02:36]} Bxf3 {[%emt 0:00:08]} 9. Qxf3 {[%emt 0:00:03]} e6 {[%emt 0:00:13]} 10. Bd3 {[%emt 0:00:08]} Bd6 {[%emt 0:01:39]} 11. O-O {[%emt 0:01:04]} O-O {[%emt 0:01:56]} 12. Bxd6 {[%emt 0:02:22]} Qxd6 {[%emt 0:00:04]} 13. Qe2 {[%emt 0:00:05]} Rac8 {[%emt 0:03:25]} 14. Rac1 {[%emt 0:00:51]} Rc7 {[%emt 0:02:44]} 15. Rfe1 {[%emt 0:08:26]} Rfc8 {[%emt 0:01:30]} 16. Rcd1 {[%emt 0:00:08]} g6 {[%emt 0:01:30]} 17. g3 {[%emt 0:04:01]} h6 {[%emt 0:21:51]} 18. h4 {[%emt 0:17:49]} Kg7 {[%emt 0:07:22]} 19. Qf3 {[%emt 0:02:06]} e5 {[%emt 0:04:20]} 20. dxe5 {[%emt 0:01:43]} Nxe5 {[%emt 0:00:05]} 21. Qg2 {[%emt 0:02:06]} Qe6 {[%emt 0:00:33]} 22. Be2 {[%emt 0:09:39]} Rc5 {[%emt 0:01:51]} 23. Rd4 {[%emt 0:06:44]} Nc6 {[%emt 0:02:12]} 24. Rf4 {[%emt 0:03:48]} g5 {[%emt 0:01:41]} 25. Ra4 {[%emt 0:00:11]} Ne5 {[%emt 0:03:55]} 26. Rd1 {[%emt 0:02:51]} Qb6 {[%emt 0:18:57]} 27. Nxd5 {[%emt 0:27:58]} Nxd5 {[%emt 0:00:21]} 28. Rxd5 {[%emt 0:00:05]} Qxb2 {[%emt 0:00:29]} 29. Rxc5 {[%emt 0:01:06]} Rxc5 {[%emt 0:00:03]} 1/2-1/2